fUSD/lending_fUSD_20260505
["ID","MTS","AMOUNT","RATE_DAILY","PERIOD"]
[421604384,1777941038000,-500.0,0.00013699,2]
[421604390,1777941038000,-500.0,0.00013699,2]
[421604382,1777941038000,-500.0,0.00013699,2]
[421604378,1777941038000,-500.0,0.00013699,2]
[421604385,1777941038000,-500.0,0.00013699,2]
[421604387,1777941038000,-496.91379955,0.00013699,2]
[421604403,1777941038000,-428319.48927802,0.00017,2]
[421604410,1777941039000,-338.004,0.0001295,2]
[421604408,1777941039000,-1893.198547,0.0001295,2]
[421604411,1777941040000,-305.11934148,0.0001295,2]
[421604413,1777941042000,-372.27914492,0.0001295,2]
[421604412,1777941042000,-2121.80929683,0.0001295,2]
[421604414,1777941042000,-1172.29580252,0.0001295,2]
[421604415,1777941042000,-1755.50200091,0.0001295,2]
[421604416,1777941043000,-1265.91989,0.0001295,2]
[421604423,1777941044000,-6397.37216944,0.00017077,2]
[421604436,1777941044000,-160.0,0.00020948,2]
[421604437,1777941044000,-58217.34389096,0.000215,2]
[421604438,1777941044000,-83753.23432912,0.00022109,2]
[421604432,1777941044000,-26718.99516591,0.0002,2]
[421604433,1777941044000,-6397.37216944,0.00020555,2]
[421604431,1777941044000,-150.99,0.0002,2]
[421604429,1777941044000,-7065.71398887,0.0002,2]
[421604426,1777941044000,-500.0,0.0002,2]
[421604430,1777941044000,-25868.69080111,0.0002,2]
[421604446,1777941044000,-624.0,0.00026435,2]
[421604428,1777941044000,-500.0,0.0002,2]
[421604434,1777941044000,-22917.98289033,0.000207,2]
[421604424,1777941044000,-110578.88038881,0.00018,2]
[421604421,1777941044000,-738832.50878504,0.00017,2]
[421604422,1777941044000,-102111.73426177,0.00017,2]
[421604419,1777941044000,-4123.93282326,0.0001295,2]
[421604420,1777941044000,-13348.06084686,0.0001622,2]
[421604425,1777941044000,-500.0,0.0002,2]
[421604439,1777941044000,-35936.00694246,0.000225,2]
[421604427,1777941044000,-500.0,0.0002,2]
[421604440,1777941044000,-157.01083673,0.00023335,2]
[421604455,1777941044000,-150.0,0.00029534,2]
[421604453,1777941044000,-624.0,0.00029435,2]
[421604459,1777941044000,-512.0,0.00029983,10]
[421604445,1777941044000,-2463.0,0.00026435,2]
[421604457,1777941044000,-572.0,0.00029983,10]
[421604452,1777941044000,-2463.0,0.00029435,2]
[421604456,1777941044000,-517.0,0.0002954,4]
[421604454,1777941044000,-6539.95,0.000295,7]
[421604451,1777941044000,-82534.34555104,0.00029,2]
[421604449,1777941044000,-6397.37216944,0.00027511,2]
[421604458,1777941044000,-469.0,0.00029983,10]
[421604450,1777941044000,-153.74,0.000276,7]
[421604441,1777941044000,-2463.0,0.00023435,2]
[421604443,1777941044000,-6397.37216944,0.00024033,2]
[421604448,1777941044000,-517.0,0.00027137,2]
[421604442,1777941044000,-637.374,0.00023435,2]
[421604444,1777941044000,-222.09,0.00024658,2]
[421604435,1777941044000,-162.48539177,0.0002086,2]
[421604447,1777941044000,-339.5250961,0.00027,2]
[421604460,1777941044000,-364.57,0.0003013,15]
[421604473,1777941045000,-517.0,0.00034346,9]
[421604482,1777941045000,-240.54902438,0.00035616,7]
[421604475,1777941045000,-211.196,0.00034822,40]
[421604474,1777941045000,-6397.37216944,0.00034466,2]
[421604485,1777941045000,-348.0,0.00035817,5]
[421604484,1777941045000,-437.0,0.00035817,5]
[421604488,1777941045000,-517.0,0.00036748,12]
[421604478,1777941045000,-153.74,0.00035,30]
[421604480,1777941045000,-1081.115,0.00035435,2]
[421604489,1777941045000,-150.0,0.00037694,2]
[421604487,1777941045000,-150.0,0.00035899,2]
[421604483,1777941045000,-208.35319925,0.00035642,2]
[421604479,1777941045000,-5000.0,0.00035222,2]
[421604481,1777941045000,-157.01083671,0.00035468,2]
[421604495,1777941045000,-500.0,0.00041,120]
[421604476,1777941045000,-2000.0,0.00034885,2]
[421604470,1777941045000,-314.0,0.000337,2]
[421604471,1777941045000,-1000.0,0.000337,2]
[421604472,1777941045000,-150.0,0.0003419,2]
[421604468,1777941045000,-2463.0,0.00032435,2]
[421604464,1777941045000,-150.0,0.00031011,2]
[421604469,1777941045000,-150.0,0.00032562,2]
[421604466,1777941045000,-269.25,0.0003223,10]
[421604467,1777941045000,-1401.0,0.0003224,2]
[421604465,1777941045000,-517.0,0.00031943,7]
[421604463,1777941045000,-323.1,0.00031001,10]
[421604462,1777941045000,-6397.37216944,0.00030988,2]
[421604461,1777941045000,-1000.0,0.00030442,2]
[421604477,1777941045000,-3337.36690268,0.00034999,2]
[421604490,1777941045000,-6397.37216944,0.00037944,2]
[421604510,1777941045000,-500.0,0.00042481,31]
[421604486,1777941045000,-387.72,0.00035889,10]
[421604517,1777941045000,-166.32375551,0.00042481,31]
[421604518,1777941045000,-99303.38127362,0.00042482,47]
[421604497,1777941045000,-1014.03305503,0.00041234,2]
[421604520,1777941045000,-15043.09471182,0.00042482,30]
[421604514,1777941045000,-500.0,0.00042481,31]
[421604511,1777941045000,-560.18089531,0.00042481,31]
[421604513,1777941045000,-575.82756922,0.00042481,31]
[421604515,1777941045000,-500.0,0.00042481,31]
[421604522,1777941045000,-213836.90961164,0.00042482,30]
[421604521,1777941045000,-12171.8618734,0.00042482,30]
[421604512,1777941045000,-500.0,0.00042481,31]
[421604507,1777941045000,-273.424648,0.00042465,78]
[421604505,1777941045000,-1840.60202986,0.00042382,2]
[421604519,1777941045000,-151.017,0.00042482,2]
[421604516,1777941045000,-500.0,0.00042481,31]
[421604506,1777941045000,-189.14599617,0.00042382,2]
[421604496,1777941045000,-500.0,0.0004123,120]
[421604494,1777941045000,-500.0,0.0004,120]
[421604491,1777941045000,-517.0,0.00039151,15]
[421604504,1777941045000,-208.40443353,0.00042382,8]
[421604492,1777941045000,-2000.0,0.00039246,2]
[421604498,1777941045000,-6397.37216944,0.00041422,15]
[421604493,1777941045000,-150.0,0.00039579,2]
[421604499,1777941045000,-517.0,0.00041554,17]
[421604500,1777941045000,-150.0,0.00041558,120]
[421604502,1777941045000,-200.0,0.00042295,120]
[421604501,1777941045000,-229.66380992,0.00042252,2]
[421604509,1777941045000,-343.42526516,0.00042481,31]
[421604503,1777941045000,-153.74,0.000423,30]
[421604508,1777941045000,-228.51290379,0.00042481,31]
[421604524,1777941046000,-718.15832655,0.00025395,2]
[421604523,1777941046000,-928.0,0.00022395,2]
[421604526,1777941046000,-928.0,0.00028395,2]
[421604525,1777941046000,-209.84167345,0.00025395,2]
[421604532,1777941046000,-928.0,0.00037395,2]
[421604529,1777941046000,-524.0,0.000337,30]
[421604533,1777941046000,-32164.26307214,0.00042482,30]
[421604531,1777941046000,-928.0,0.00034395,2]
[421604528,1777941046000,-256.0,0.000337,30]
[421604530,1777941046000,-937.0,0.000337,30]
[421604534,1777941046000,-35922.05560608,0.00042482,30]
[421604536,1777941046000,-350.88499915,0.00042482,30]
[421604535,1777941046000,-10012.121132,0.00042482,30]
[421604527,1777941046000,-928.0,0.00031395,2]
[421604600,1777942018000,-0.6561307,0.00013115,2]
[421604599,1777942018000,-168.956,0.00013031,2]
[421604602,1777942052000,-384.22620767,0.00013115,2]
[421604603,1777942052000,-204.05294648,0.00013296,2]
[421604601,1777942052000,-249.3438693,0.00013115,2]
[421604605,1777942052000,-150.0,0.00013296,2]
[421604606,1777942052000,-300.0,0.00013296,2]
[421604607,1777942052000,-21843.27894735,0.00013297,2]
[421604604,1777942052000,-1200.0,0.00013296,2]
[421604611,1777942231000,-1200.0,0.00013196,2]
[421604615,1777942231000,-1238.14248942,0.00013599,2]
[421604613,1777942231000,-11664.05993917,0.00013197,2]
[421604614,1777942231000,-1497.81230115,0.00013599,2]
[421604612,1777942231000,-2035.94006083,0.00013197,2]
[421604616,1777942231000,-355.00000001,0.00013599,2]
[421604688,1777942232000,-500.0,0.00019999,2]
[421604660,1777942232000,-500.0,0.00019999,2]
[421604697,1777942232000,-500.0,0.00019999,2]
[421604671,1777942232000,-500.0,0.00019999,2]
[421604665,1777942232000,-500.0,0.00019999,2]
[421604667,1777942232000,-500.0,0.00019999,2]
[421604674,1777942232000,-500.0,0.00019999,2]
[421604669,1777942232000,-500.0,0.00019999,2]
[421604662,1777942232000,-500.0,0.00019999,2]
[421604668,1777942232000,-500.0,0.00019999,2]
[421604676,1777942232000,-500.0,0.00019999,2]
[421604686,1777942232000,-500.0,0.00019999,2]
[421604687,1777942232000,-490.72429601,0.00019999,2]
[421604677,1777942232000,-500.0,0.00019999,2]
[421604681,1777942232000,-500.0,0.00019999,2]
[421604678,1777942232000,-500.0,0.00019999,2]
[421604683,1777942232000,-500.0,0.00019999,2]
[421604679,1777942232000,-500.0,0.00019999,2]
[421604675,1777942232000,-500.0,0.00019999,2]
[421604684,1777942232000,-500.0,0.00019999,2]
[421604682,1777942232000,-500.0,0.00019999,2]
[421604680,1777942232000,-500.0,0.00019999,2]
[421604689,1777942232000,-500.0,0.00019999,2]
[421604699,1777942232000,-500.0,0.00019999,2]
[421604691,1777942232000,-500.0,0.00019999,2]
[421604670,1777942232000,-500.0,0.00019999,2]
[421604685,1777942232000,-500.0,0.00019999,2]
[421604672,1777942232000,-500.0,0.00019999,2]
[421604656,1777942232000,-500.0,0.00019999,2]
[421604617,1777942232000,-965.61194919,0.00013599,2]
[421604618,1777942232000,-7145.58276998,0.00013599,2]
[421604620,1777942232000,-150.0,0.00013698,2]
[421604619,1777942232000,-697.83019777,0.00013599,2]
[421604622,1777942232000,-250.0,0.00014334,2]
[421604621,1777942232000,-500.0,0.00014334,2]
[421604634,1777942232000,-13033.0022751,0.000165,2]
[421604624,1777942232000,-250.0,0.00014516,2]
[421604635,1777942232000,-11202.14950966,0.00016793,2]
[421604623,1777942232000,-300.0,0.00014334,2]
[421604636,1777942232000,-697.83019775,0.00016793,2]
[421604629,1777942232000,-255.0,0.00014821,2]
[421604631,1777942232000,-5000.0,0.000164,2]
[421604628,1777942232000,-250.0,0.00014517,2]
[421604626,1777942232000,-480.0,0.00014516,2]
[421604637,1777942232000,-504.55074707,0.00018192,18]
[421604641,1777942232000,-233.07878975,0.000185,2]
[421604643,1777942232000,-11202.14950966,0.00019986,2]
[421604639,1777942232000,-1189.29056698,0.00018192,18]
[421604647,1777942232000,-500.0,0.00019999,2]
[421604645,1777942232000,-697.83019775,0.00019986,2]
[421604649,1777942232000,-500.0,0.00019999,2]
[421604650,1777942232000,-500.0,0.00019999,2]
[421604652,1777942232000,-500.0,0.00019999,2]
[421604654,1777942232000,-500.0,0.00019999,2]
[421604658,1777942232000,-500.0,0.00019999,2]
[421604692,1777942232000,-500.0,0.00019999,2]
[421604673,1777942232000,-500.0,0.00019999,2]
[421604696,1777942232000,-500.0,0.00019999,2]
[421604726,1777942232000,-928.0,0.00030943,2]
[421604725,1777942232000,-150.0,0.00030943,2]
[421604727,1777942232000,-150.0,0.00031011,2]
[421604736,1777942232000,-697.83019775,0.0003276,2]
[421604737,1777942232000,-1536.8948358,0.00033,120]
[421604729,1777942232000,-224.37,0.0003199,10]
[421604728,1777942232000,-1807.9164988,0.0003155,110]
[421604731,1777942232000,-1000.0,0.00032128,2]
[421604733,1777942232000,-150.0,0.00032562,2]
[421604730,1777942232000,-1536.8948358,0.00032,120]
[421604735,1777942232000,-11202.14950966,0.0003276,2]
[421604734,1777942232000,-473.87,0.000326,2]
[421604738,1777942232000,-1536.8948358,0.000339,120]
[421604740,1777942232000,-150.0,0.0003419,2]
[421604739,1777942232000,-518.0,0.00034185,9]
[421604748,1777942232000,-150.0,0.00037694,2]
[421604744,1777942232000,-11202.14950966,0.00035954,2]
[421604741,1777942232000,-2000.0,0.00034459,2]
[421604743,1777942232000,-150.0,0.00035899,2]
[421604745,1777942232000,-697.83019775,0.00035954,2]
[421604746,1777942232000,-1536.8948358,0.00036,120]
[421604742,1777942232000,-1536.8948358,0.00035,120]
[421604747,1777942232000,-168.957,0.00037273,48]
[421604749,1777942232000,-518.0,0.0003771,13]
[421604750,1777942232000,-2000.0,0.00038287,2]
[421604718,1777942232000,-150.0,0.00029534,2]
[421604720,1777942232000,-697.83019775,0.00029567,2]
[421604732,1777942232000,-185.86369455,0.0003224,2]
[421604722,1777942232000,-317.0,0.00029983,10]
[421604694,1777942232000,-500.0,0.00019999,2]
[421604690,1777942232000,-500.0,0.00019999,2]
[421604724,1777942232000,-518.0,0.00030661,5]
[421604698,1777942232000,-500.0,0.00019999,2]
[421604695,1777942232000,-500.0,0.00019999,2]
[421604702,1777942232000,-10000.0,0.0002,2]
[421604701,1777942232000,-13062.50752048,0.0002,2]
[421604711,1777942232000,-697.83019775,0.00026373,2]
[421604710,1777942232000,-11202.14950966,0.00026373,2]
[421604705,1777942232000,-172.09,0.00022138,2]
[421604709,1777942232000,-928.0,0.00024943,2]
[421604704,1777942232000,-162.48539177,0.0002053,2]
[421604703,1777942232000,-168.83,0.00020428,2]
[421604693,1777942232000,-500.0,0.00019999,2]
[421604706,1777942232000,-11202.14950966,0.0002318,2]
[421604708,1777942232000,-150.0,0.00024943,2]
[421604717,1777942232000,-204.23873248,0.0002869,2]
[421604721,1777942232000,-469.0,0.00029983,10]
[421604719,1777942232000,-11202.14950966,0.00029567,2]
[421604723,1777942232000,-2000.0,0.0003063,2]
[421604716,1777942232000,-579.75,0.00028556,2]
[421604700,1777942232000,-52213.39098403,0.0002,2]
[421604714,1777942232000,-150.0,0.00027943,2]
[421604713,1777942232000,-518.0,0.00027137,2]
[421604712,1777942232000,-5000.0,0.00026648,2]
[421604707,1777942232000,-697.83019775,0.0002318,2]
[421604715,1777942232000,-928.0,0.00027943,2]
[421604767,1777942233000,-164.25782377,0.00042081,28]
[421604769,1777942233000,-200.0,0.00042132,2]
[421604766,1777942233000,-164.2578238,0.00042016,28]
[421604773,1777942233000,-5000.0,0.00042199,30]
[421604763,1777942233000,-150.0,0.00041558,120]
[421604768,1777942233000,-2000.0,0.00042116,120]
[421604771,1777942233000,-5000.0,0.00042199,15]
[421604765,1777942233000,-20000.0,0.00042,2]
[421604764,1777942233000,-181.376504,0.00041592,21]
[421604762,1777942233000,-151.57,0.0004134,2]
[421604755,1777942233000,-506.58951316,0.00040286,5]
[421604759,1777942233000,-11838.0,0.0004095,60]
[421604757,1777942233000,-365.0,0.00040875,2]
[421604758,1777942233000,-196.0,0.00040875,2]
[421604754,1777942233000,-150.0,0.00039579,2]
[421604761,1777942233000,-200.0,0.00041283,2]
[421604751,1777942233000,-11202.14950966,0.00039147,2]
[421604752,1777942233000,-697.83019775,0.00039147,2]
[421604753,1777942233000,-1342.2552635,0.00039179,2]
[421604770,1777942233000,-164.25782377,0.00042146,28]
[421604760,1777942233000,-518.0,0.00041234,17]
[421604756,1777942233000,-200.0,0.00040434,2]
[421604772,1777942233000,-10000.0,0.00042199,15]
[421604776,1777942233000,-164.25782377,0.00042276,28]
[421604774,1777942233000,-10000.0,0.00042199,30]
[421604797,1777942233000,-309453.49314992,0.00042441,30]
[421604793,1777942233000,-500.0,0.0004244,31]
[421604796,1777942233000,-49651.69063681,0.0004244,47]
[421604794,1777942233000,-500.0,0.0004244,31]
[421604792,1777942233000,-387.85825511,0.0004244,31]
[421604791,1777942233000,-500.0,0.0004244,31]
[421604789,1777942233000,-476.12354179,0.0004244,31]
[421604790,1777942233000,-500.0,0.0004244,31]
[421604788,1777942233000,-150.0,0.0004244,31]
[421604786,1777942233000,-91914.95126502,0.00042373,120]
[421604795,1777942233000,-400.0,0.0004244,120]
[421604779,1777942233000,-151.0,0.00042294,120]
[421604781,1777942233000,-11838.0,0.000423,60]
[421604784,1777942233000,-157.01083671,0.00042341,7]
[421604785,1777942233000,-164.25782377,0.00042341,28]
[421604775,1777942233000,-164.25782377,0.00042211,28]
[421604778,1777942233000,-151.0,0.00042294,120]
[421604783,1777942233000,-697.83019775,0.00042341,15]
[421604780,1777942233000,-235.22474337,0.00042294,120]
[421604777,1777942233000,-151.0,0.00042294,120]
[421604782,1777942233000,-11202.14950966,0.00042341,15]
[421604787,1777942233000,-300.0,0.0004244,30]
[421604800,1777942237000,-928.0,0.00033943,2]
[421604801,1777942238000,-928.0,0.00036943,2]
[421604802,1777942238000,-928.0,0.00039943,2]
[421604803,1777942238000,-199223.57501693,0.00042441,30]
[421604804,1777942238000,-186.98,0.00042431,10]
[421604808,1777942238000,-6936.65,0.00042441,30]
[421604805,1777942238000,-41440.82494876,0.00042441,30]
[421604810,1777942238000,-646.50864285,0.00042441,30]
[421604807,1777942238000,-12227.53060742,0.00042441,30]
[421604809,1777942238000,-1343.82,0.00042441,30]
[421604806,1777942238000,-186908.66560701,0.00042441,30]
[421604910,1777942240000,-265.50848359,0.00042441,30]
[421604909,1777942240000,-2499.95219066,0.00042441,30]
[421604908,1777942240000,-1240.0036325,0.00042441,30]
[421604911,1777942243000,-824.0,0.00042441,30]
[421604965,1777942246000,-150.0,0.00024943,2]
[421604966,1777942246000,-295.5,0.00042441,30]
[421604968,1777942246000,-887.32092717,0.00042441,30]
[421604967,1777942246000,-150.0,0.00027943,2]
[421604973,1777942246000,-6365.26735828,0.00042441,30]
[421604970,1777942246000,-9938.81195495,0.00042441,30]
[421604971,1777942246000,-5423.60390867,0.00042441,30]
[421604972,1777942246000,-11357.09714222,0.00042441,30]
[421604974,1777942246000,-1235.34021761,0.00042441,30]
[421604969,1777942246000,-32217.10752852,0.00042441,30]
[421605005,1777942262000,2500.0,0.00028406,120]
[421605004,1777942262000,2500.0,0.00028406,120]
[421605003,1777942262000,2500.0,0.00028406,120]
[421605002,1777942262000,2500.0,0.0002619,120]
[421605001,1777942262000,2500.0,0.00027124,120]
[421605006,1777942303000,6637.45,0.00030137,120]
[421605016,1777943226000,-24972.73610278,0.00013399,2]
[421605014,1777943226000,-300.0,0.00013398,2]
[421605013,1777943226000,-168.957,0.00013229,2]
[421605015,1777943226000,-5000.0,0.00013399,2]
[421605023,1777943432000,-5061.19699173,0.00013399,2]
[421605021,1777943432000,-300.0,0.00013398,2]
[421605020,1777943432000,-1200.0,0.00013398,2]
[421605022,1777943432000,-611.78030549,0.00013399,2]
[421605024,1777943432000,-5000.0,0.00013399,2]
[421605026,1777943432000,-59245.11320142,0.00013499,2]
[421605028,1777943432000,-2421.15165844,0.00013499,2]
[421605027,1777943432000,-2481.28,0.00013499,2]
[421605029,1777943432000,-588.88029984,0.00013499,2]
[421605030,1777943432000,-900.0,0.00013499,2]
[421605025,1777943432000,-43330.61656918,0.00013499,2]
[421605046,1777943438000,-39132.88238231,0.00013499,2]
[421605045,1777943438000,-199223.57501693,0.00013499,2]
[421605044,1777943438000,-1496.13372,0.00013499,2]
[421605043,1777943438000,-1102.89157076,0.00013499,2]
[421605042,1777943438000,-3382.41034475,0.00013499,2]
[421605041,1777943438000,-796.24490861,0.00013499,2]
[421605040,1777943438000,-301.76454383,0.00013499,2]
[421605130,1777943441000,-836.81918782,0.00013499,2]
[421605154,1777943443000,-292.15410579,0.00013499,2]
[421605153,1777943443000,-15290.37300678,0.00013499,2]
[421605198,1777943446000,-11063.5453935,0.00013499,2]
[421605203,1777943446000,-1146.25850689,0.00013499,2]
[421605202,1777943446000,-446.03026609,0.00013499,2]
[421605201,1777943446000,-25394.68613141,0.00013499,2]
[421605238,1777944123000,9126.0,0.00030136,120]
[421605241,1777944625000,657.01,0.00030137,120]
[421605284,1777944632000,-9999.99,0.00026664,2]
[421605276,1777944632000,-1000.0,0.00026664,2]
[421605277,1777944632000,-2000.0,0.00026664,2]
[421605274,1777944632000,-186.52,0.00024658,2]
[421605275,1777944632000,-928.0,0.00026563,2]
[421605272,1777944632000,-854.0,0.0002,2]
[421605271,1777944632000,-887.0,0.0002,2]
[421605270,1777944632000,-623.00553277,0.0002,2]
[421605268,1777944632000,-595481.40736196,0.00015,2]
[421605269,1777944632000,-161.68,0.00018281,2]
[421605267,1777944632000,-1283.59230351,0.00015,2]
[421605266,1777944632000,-589.58025,0.00015,2]
[421605264,1777944632000,-706.95471448,0.00015,2]
[421605262,1777944632000,-176.01524314,0.00014968,2]
[421605260,1777944632000,-140.22901856,0.00013499,2]
[421605263,1777944632000,-327.14865396,0.00015,2]
[421605259,1777944632000,-50.50748251,0.00013499,2]
[421605261,1777944632000,-500.0,0.00013698,2]
[421605258,1777944632000,-328.0,0.00013499,2]
[421605279,1777944632000,-5000.0,0.00026664,2]
[421605278,1777944632000,-400.06,0.00026664,2]
[421605273,1777944632000,-928.0,0.00023563,2]
[421605280,1777944632000,-299.99,0.00026664,12]
[421605335,1777944632000,-26690.10335607,0.00029434,2]
[421605331,1777944632000,-147844.79356814,0.00029434,2]
[421605337,1777944632000,-1254.41808677,0.00029434,2]
[421605328,1777944632000,-142024.85959311,0.00029434,2]
[421605325,1777944632000,-155.15920034,0.00029434,2]
[421605322,1777944632000,-390.02928784,0.00029433,7]
[421605319,1777944632000,-5000.0,0.00029334,2]
[421605315,1777944632000,-1598.8761126,0.00028825,2]
[421605311,1777944632000,-2594.1613882,0.00028825,2]
[421605308,1777944632000,-28564.0518388,0.00028825,2]
[421605296,1777944632000,-4024.24,0.00027137,2]
[421605303,1777944632000,-9999.99,0.00027688,2]
[421605290,1777944632000,-7929.80213549,0.00027137,2]
[421605305,1777944632000,-168.957,0.00027688,17]
[421605300,1777944632000,-186.52,0.00027397,7]
[421605286,1777944632000,-6440.99786451,0.00027137,2]
[421605283,1777944632000,-9999.99,0.00026664,2]
[421605282,1777944632000,-10356.2,0.00026664,2]
[421605285,1777944632000,-518.0,0.00027137,2]
[421605293,1777944632000,-9999.99,0.00027137,2]
[421605281,1777944632000,-150.99,0.00026664,2]
[421605339,1777944638000,-150.99,0.00024658,2]
[421605340,1777944638000,-151.0,0.00029434,2]
[421605342,1777944638000,-107109.88080325,0.00029434,2]
[421605343,1777944638000,-1287.1,0.00029434,2]
[421605341,1777944638000,-511.0,0.00029434,10]
[421605355,1777944640000,-542.688,0.00029434,2]
[421605357,1777944640000,-492.65507974,0.00029434,2]
[421605356,1777944640000,-422.89223244,0.00029434,2]
[421605353,1777944640000,-156.11,0.00029424,10]
[421605354,1777944640000,-459.89,0.00029434,2]
[421605358,1777944641000,-1219.17117707,0.00029434,2]
[421605359,1777944641000,-883.15138334,0.00029434,2]
[421605361,1777944641000,-12317.31290074,0.00029434,2]
[421605360,1777944641000,-701.3721446,0.00029434,2]
[421605392,1777944643000,-5508.35196049,0.00030137,120]
[421605388,1777944643000,-254.0,0.00030031,30]
[421605390,1777944643000,-187.33,0.00030127,10]
[421605387,1777944643000,-7566.69952162,0.0003,2]
[421605384,1777944643000,-5885.96,0.000296,7]
[421605382,1777944643000,-150.0,0.00029534,2]
[421605380,1777944643000,-987.61314542,0.00029434,2]
[421605385,1777944643000,-153.75,0.000296,7]
[421605383,1777944643000,-612.906,0.00029563,2]
[421605381,1777944643000,-111393.30157859,0.00029434,2]
[421605379,1777944643000,-283514.24617599,0.00029434,2]
[421605378,1777944643000,-97244.95347473,0.00029434,2]
[421605393,1777944643000,-201.33,0.00030176,2]
[421605391,1777944643000,-186.53,0.00030136,30]
[421605386,1777944643000,-2000.0,0.00029997,2]
[421605395,1777944643000,-165.21,0.00030361,2]
[421605389,1777944643000,-511.0,0.00030031,30]
[421605407,1777944643000,-150.0,0.00035899,2]
[421605404,1777944643000,-150.0,0.0003419,2]
[421605402,1777944643000,-680.79,0.00033329,60]
[421605403,1777944643000,-2000.0,0.0003333,2]
[421605401,1777944643000,-165.21,0.00033163,7]
[421605405,1777944643000,-206.0,0.0003446,5]
[421605408,1777944643000,-2000.0,0.00036663,2]
[421605398,1777944643000,-162.48539177,0.00032253,2]
[421605399,1777944643000,-518.0,0.00032423,7]
[421605400,1777944643000,-150.0,0.00032562,2]
[421605397,1777944643000,-150.0,0.00031011,2]
[421605394,1777944643000,-201.33,0.00030176,7]
[421605406,1777944643000,-153.0,0.0003446,5]
[421605396,1777944643000,-504.1438077,0.00030457,2]
[421605448,1777944644000,-261.0,0.00040875,2]
[421605450,1777944644000,-151.0,0.00041,120]
[421605447,1777944644000,-300.2726109,0.00040875,2]
[421605446,1777944644000,-578.76757583,0.00040803,120]
[421605449,1777944644000,-8455.0,0.0004095,60]
[421605452,1777944644000,-806.92188469,0.00041094,120]
[421605456,1777944644000,-1163.17,0.000415,120]
[421605455,1777944644000,-2500.0,0.000412,120]
[421605445,1777944644000,-357.71024604,0.00040786,120]
[421605432,1777944644000,-688.75,0.0004,120]
[421605443,1777944644000,-150.0,0.00040741,7]
[421605451,1777944644000,-619.49941265,0.00041,30]
[421605444,1777944644000,-212.49,0.0004075,120]
[421605453,1777944644000,-184.0,0.00041096,30]
[421605471,1777944644000,-1174.74186993,0.000424,120]
[421605458,1777944644000,-150.0,0.0004159,30]
[421605470,1777944644000,-5776.32251636,0.00042341,2]
[421605469,1777944644000,-1514.30877344,0.00042341,2]
[421605468,1777944644000,-920.30101493,0.00042341,2]
[421605457,1777944644000,-150.0,0.00041558,120]
[421605442,1777944644000,-1334.58793083,0.00040718,120]
[421605460,1777944644000,-205.800344,0.00041593,21]
[421605464,1777944644000,-1000.0,0.000422,120]
[421605466,1777944644000,-8455.0,0.000423,60]
[421605462,1777944644000,-1422.1204017,0.00041736,2]
[421605463,1777944644000,-151.0,0.000419,120]
[421605465,1777944644000,-215.50990502,0.00042203,120]
[421605467,1777944644000,-2415.2091,0.00042341,2]
[421605473,1777944644000,-500.0,0.00042438,7]
[421605454,1777944644000,-150.0,0.00041096,120]
[421605437,1777944644000,-156.69,0.0004,120]
[421605435,1777944644000,-322.27,0.0004,120]
[421605436,1777944644000,-400.66,0.0004,120]
[421605483,1777944644000,-1036.16,0.00042438,7]
[421605409,1777944644000,-400.06,0.00037329,2]
[421605418,1777944644000,-150.0,0.00038195,7]
[421605412,1777944644000,-162.48539177,0.000377,7]
[421605410,1777944644000,-150.0,0.00037694,2]
[421605411,1777944644000,-5885.96,0.000377,7]
[421605414,1777944644000,-234.6000861,0.000381,33]